bitfinex-derivatives/quotes_SOLF0:USTF0_20250109
["timestamp","ask_amount","ask_price","bid_price","bid_amount"]
[1736400645227,6.44680981,195.01,194.94,6.44680981]
[1736400645532,6.44680981,194.99,194.92,8.04620981]
[1736400645727,2.88,194.98,194.92,8.04620981]
[1736400646131,2.88,194.98,194.92,1.5994]
[1736400646332,2.88,194.98,194.92,8.04620981]
[1736400646530,2.88,194.98,194.92,1.5994]
[1736400646729,2.88,194.98,194.97,2.5656]
[1736400646929,2.88,194.98,194.93,6.44680981]
[1736400647132,9.32680981,195.03,194.97,9.01230981]
[1736400647332,2.88,195.03,194.97,6.44680981]
[1736400648036,2.88,195.03,195.02,2.5649]
[1736400648933,9.32680981,195.05,195.04,2.5647]
[1736400649334,9.32680981,195.05,194.97,6.44680981]
[1736400649636,9.32680981,195.05,195.01,2.565]
[1736400649637,6.44680981,195.03,195.01,2.565]
[1736400650833,6.44680981,195.03,195.02,2.5649]
[1736400653437,2.88,195.05,195.04,2.5647]
[1736400654536,9.32680981,195.07,195.06,2.5644]
[1736400656134,2.88,195.07,195.06,2.5644]
[1736400656439,9.32680981,195.07,195.06,2.5644]
[1736400657536,9.32680981,195.07,194.92,1.5994]
[1736400657737,6.44680981,195.03,194.96,6.44680981]
[1736400657933,6.44680981,195.03,194.98,6.44680981]
[1736400658642,6.44680981,195.03,195.02,2.5649]
[1736400668453,83.1205,195.13,195.05,2.5645]
[1736400668744,3.81034335,195.12,194.99,6.44680981]
[1736400668951,6.44680981,195.05,194.99,6.44680981]
[1736400669251,9.32680981,195.06,194.99,6.44680981]
[1736400669451,9.32680981,195.06,195.0,1.5276]
[1736400670847,6.44680981,195.06,195.0,1.5276]
[1736400671352,6.44680981,195.06,195.05,2.5646]
[1736400676656,6.44680981,195.06,194.97,1.5091]
[1736400676857,6.44680981,195.01,194.97,1.5091]
[1736400678065,6.44680981,195.01,195.0,2.5652]
[1736400683153,2.88,195.02,195.01,2.5651]
[1736400684961,2.88,195.04,194.97,7.95590981]
[1736400685153,9.32680981,195.04,194.97,7.95590981]
[1736400685663,178.22259933,195.11,195.01,6.44680981]
[1736400685859,184.66940914,195.11,195.03,6.44680981]
[1736400686057,1.606,195.13,195.12,2.5636]
[1736400686357,6.44680981,195.13,195.07,6.44680981]
[1736400686556,6.44680981,195.13,195.05,1.4978]
[1736400686762,6.44680981,195.13,195.12,2.5636]
[1736400691662,6.44680981,195.14,195.06,6.44680981]
[1736400691858,6.44680981,195.16,195.08,6.44680981]
[1736400692065,6.44680981,195.17,195.1,6.44680981]
[1736400692265,6.44680981,195.17,195.1,9.32680981]
[1736400692465,6.44680981,195.17,195.16,2.5631]
[1736400694160,392.08971853,195.28,195.16,2.88]
[1736400694360,392.08971853,195.28,195.27,2.5617]
[1736400694571,393.01996456,195.28,195.27,2.5617]
[1736400694766,384.88876456,195.28,195.27,2.5617]
[1736400694969,335.11241853,195.28,195.27,9.00850981]
[1736400695168,6.44680981,195.34,195.32,2.561]
[1736400695464,0.93013669,195.33,195.27,6.44680981]
[1736400695671,6.44680981,195.32,195.25,9.32680981]
[1736400695867,178.22259933,195.36,195.3,2.5613]
[1736400696064,6.44680981,195.33,195.25,9.32680981]
[1736400697067,6.44680981,195.33,195.28,2.5615]
[1736400700772,4.3806,195.37,195.24,2.562]
[1736400700773,6.44680981,195.29,195.24,2.562]
[1736400700975,6.44680981,195.29,195.22,2.88]
[1736400701871,6.44680981,195.29,195.25,2.5618]
[1736400702073,6.44680981,195.29,195.23,6.44680981]
[1736400702469,6.44680981,195.29,195.22,2.88]
[1736400702669,6.44680981,195.29,195.22,9.32680981]
[1736400703673,6.44680981,195.29,195.25,2.5618]
[1736400705073,6.44680981,195.29,195.26,2.5618]
[1736400706178,6.44680981,195.29,195.17,194.0679]
[1736400706179,6.44680981,195.27,195.24,2.5619]
[1736400706873,6.44680981,195.27,195.25,2.5619]
[1736400711679,6.44680981,195.27,195.22,6.44680981]
[1736400711879,9.32680981,195.29,195.26,2.5618]
[1736400712777,6.44680981,195.27,195.24,2.562]
[1736400713081,6.44680981,195.25,195.17,9.51470981]
[1736400713480,6.44680981,195.25,195.23,2.5621]
[1736400717379,2.88,195.24,195.23,2.5621]
[1736400717580,2.88,195.24,195.19,2.5626]
[1736400717780,6.44680981,195.2,195.11,6.44680981]
[1736400717975,6.44680981,195.18,195.11,6.44680981]
[1736400718187,6.44680981,195.18,195.1,2.88]
[1736400718481,6.44680981,195.18,195.11,6.44680981]
[1736400719070,6.44680981,195.18,195.17,2.5629]
[1736400722585,6.44680981,195.18,195.16,2.5631]
[1736400722786,6.44680981,195.17,195.16,2.5631]
[1736400723386,6.44680981,195.17,195.14,2.5633]
[1736400723584,6.44680981,195.15,195.14,2.5633]
[1736400725388,6.44680981,195.15,195.12,2.5635]
[1736400725584,6.44680981,195.13,195.12,2.5635]
[1736400732590,6.44680981,195.13,195.06,6.44680981]
[1736400732795,6.44680981,195.11,195.1,2.5638]
[1736400734503,8.19890591,195.24,195.08,6.44680981]
[1736400734794,217.60957699,195.34,195.03,2.88]
[1736400734795,6.44680981,195.16,195.1,6.44680981]
[1736400734996,9.32680981,195.16,195.1,6.44680981]
[1736400735396,9.32680981,195.16,195.15,2.5631]
[1736400736396,9.32680981,195.16,195.1,6.44680981]
[1736400736597,9.32680981,195.16,195.14,2.5634]
[1736400736895,9.32680981,195.16,195.08,6.44680981]
[1736400737096,6.44680981,195.13,195.11,2.5637]
[1736400738897,6.44680981,195.13,195.06,6.44680981]
[1736400739097,6.44680981,195.13,195.12,2.5636]
[1736400742194,6.44680981,195.15,195.08,6.44680981]
[1736400742500,6.44680981,195.15,195.14,2.5634]
[1736400743700,6.44680981,195.15,195.1,2.5638]
[1736400743896,6.44680981,195.15,195.09,1.5814]
[1736400744496,6.44680981,195.15,195.08,6.44680981]
[1736400744497,6.44680981,195.13,195.03,2.88]
[1736400744701,6.44680981,195.13,195.06,6.44680981]
[1736400746205,6.44680981,195.13,195.11,2.5637]
[1736400748814,6.44680981,195.15,195.08,6.44680981]
[1736400749412,6.44680981,195.15,195.1,2.5639]
[1736400749712,6.44680981,195.15,195.08,6.44680981]
[1736400750515,6.44680981,195.13,195.06,6.44680981]
[1736400750714,6.44680981,195.11,195.03,2.88]
[1736400751019,6.44680981,195.09,195.02,6.44680981]
[1736400751320,6.44680981,195.07,195.01,1.5814]
[1736400751616,6.44680981,195.05,195.01,1.5814]
[1736400752007,6.44680981,195.05,195.04,2.5647]
[1736400752408,2.88,195.06,195.01,1.5814]
[1736400752615,2.88,195.06,195.05,2.5646]
[1736400756223,2.88,195.09,195.08,2.5641]
[1736400759520,2.88,195.09,195.06,2.5644]
[1736400759720,6.44680981,195.07,195.06,2.5644]
[1736400760022,6.44680981,195.07,195.02,6.44680981]
[1736400760218,6.44680981,195.07,195.01,1.5814]
[1736400761623,6.44680981,195.07,195.04,2.5646]
[1736400762118,6.44680981,195.07,195.05,2.5645]
[1736400765026,6.44680981,195.09,195.02,6.44680981]
[1736400765222,9.32680981,195.09,195.02,6.44680981]
[1736400765727,9.32680981,195.09,195.05,2.5644]
[1736400766024,9.32680981,195.09,195.02,6.44680981]
[1736400766727,2.88,195.09,195.02,6.44680981]
[1736400767726,2.88,195.09,195.08,2.5642]
[1736400768227,2.88,195.09,195.06,2.5643]
[1736400768522,6.44680981,195.07,195.06,2.5643]
[1736400769528,6.44680981,195.07,195.01,1.5814]
[1736400770523,6.44680981,195.07,195.02,2.5648]
[1736400770724,6.44680981,195.07,195.01,1.5814]
[1736400771627,6.44680981,195.07,195.05,2.5644]
[1736400776236,6.44680981,195.07,195.06,2.5644]
[1736400777030,5.4441,195.09,195.06,2.5644]
[1736400777230,6.44680981,195.07,195.06,2.5644]
[1736400783647,2.5645,195.06,195.03,2.5647]
[1736400783843,6.44680981,195.04,194.96,6.44680981]
[1736400784145,9.32680981,195.04,195.01,2.565]
[1736400784446,9.32680981,195.04,194.96,6.44680981]
[1736400784744,9.32680981,195.04,195.02,2.5649]
[1736400785448,9.32680981,195.04,195.01,2.565]
[1736400785647,6.44680981,195.02,195.01,2.565]
[1736400787345,9.32680981,195.04,195.03,2.5648]
[1736400787647,9.32680981,195.04,194.96,6.44680981]
[1736400788154,9.32680981,195.04,195.01,2.565]
[1736400788447,9.32680981,195.04,194.96,6.44680981]
[1736400788951,9.32680981,195.04,194.98,6.44680981]
[1736400790246,9.32680981,195.04,195.02,2.5649]
[1736400791649,9.32680981,195.04,194.98,6.44680981]
[1736400791848,2.88,195.05,195.04,2.5646]
[1736400792044,6.44680981,195.07,195.0,6.44680981]
[1736400792343,6.44680981,195.07,194.97,2.88]
[1736400792344,6.44680981,195.1,195.02,6.44680981]
[1736400792545,9.32680981,195.12,195.06,6.44680981]
[1736400792746,6.44680981,195.14,195.06,6.44680981]
[1736400792950,6.44680981,195.14,195.08,6.44680981]
[1736400793151,2.88,195.15,195.08,6.44680981]
[1736400793348,2.88,195.15,195.1,6.44680981]
[1736400793851,179.69079933,195.2,195.1,6.44680981]
[1736400794152,6.44680981,195.16,195.1,6.44680981]
[1736400795655,1.4561,195.22,195.1,6.44680981]
[1736400795854,1.4561,195.22,195.12,6.44680981]
[1736400796047,0.93051319,195.21,195.14,6.44680981]
[1736400796248,2.88,195.22,195.14,6.44680981]
[1736400796552,6.44680981,195.21,195.14,6.44680981]
[1736400796951,6.44680981,195.19,195.15,2.5631]
[1736400797142,6.44680981,195.19,195.12,2.88]
[1736400797347,6.44680981,195.17,195.11,6.44680981]
[1736400797543,6.44680981,195.17,195.09,6.44680981]
[1736400797754,6.44680981,195.15,195.09,6.44680981]
[1736400799251,6.44680981,195.15,195.12,2.5636]
[1736400799557,6.44680981,195.13,195.07,6.44680981]
[1736400799744,6.44680981,195.13,195.11,2.5638]
[1736400800553,6.44680981,195.13,195.09,2.564]
[1736400800755,6.44680981,195.13,195.05,6.44680981]
[1736400801455,6.44680981,195.13,195.12,2.5636]
[1736400804247,6.44680981,195.15,195.07,6.44680981]
[1736400804454,6.44680981,195.15,195.14,2.5633]
[1736400805155,6.44680981,195.15,195.13,2.5635]
[1736400805550,9.01010981,195.15,195.06,6.44680981]
[1736400805749,6.44680981,195.12,195.1,2.5639]
[1736400806354,2.88,195.11,195.04,1.5604]
[1736400806554,6.44680981,195.1,195.07,2.5642]
[1736400807456,6.44680981,195.1,195.09,2.564]
[1736400808551,2.88,195.11,195.1,2.5639]
[1736400814161,2.88,195.11,195.08,2.5641]
[1736400814364,6.44680981,195.09,195.03,7.90860981]
[1736400814655,6.44680981,195.09,195.05,2.5644]
[1736400814856,6.44680981,195.07,195.05,2.5644]
[1736400815755,6.44680981,195.07,195.03,1.4618]
[1736400815956,6.44680981,195.07,195.06,2.5644]
[1736400816162,9.32680981,195.07,195.03,1.4618]
[1736400816458,9.32680981,195.07,195.04,2.5646]
[1736400817257,11.89110981,195.07,195.03,2.5648]
[1736400817554,6.44680981,195.05,195.03,2.5648]
[1736400821257,6.44680981,195.05,194.98,1.5816]
[1736400821459,6.44680981,195.03,194.98,1.5816]
[1736400821665,2.88,195.02,194.99,2.5653]
[1736400821856,6.44680981,195.01,194.99,2.5653]
[1736400822061,6.44680981,195.01,194.96,5.05760197]
[1736400822857,6.44680981,195.01,194.98,2.5654]
[1736400823058,6.44680981,194.99,194.93,1.5053]
[1736400824665,6.44680981,194.97,194.93,1.5053]
[1736400824872,9.32680981,194.97,194.87,43.87324413]
[1736400825068,9.32680981,194.97,194.9,7.94140981]
[1736400825365,9.32680981,194.97,194.94,2.566]
[1736400826062,9.32680981,194.97,194.95,2.5658]
[1736400826570,2.88,194.97,194.93,2.5661]
[1736400826769,2.88,194.97,194.91,6.44680981]
[1736400827170,2.88,194.97,194.93,6.44680981]
[1736400827767,2.88,194.97,194.96,2.5657]
[1736400828464,9.32680981,194.97,194.96,2.5657]
[1736400828872,9.32680981,194.97,194.9,7.94140981]
[1736400829066,9.32680981,194.97,194.95,2.5659]
[1736400829271,9.32680981,194.97,194.9,1.4946]
[1736400829272,2.88,194.97,194.9,1.4946]
[1736400829473,2.88,194.97,194.92,6.44680981]
[1736400829770,6.44680981,194.98,194.97,2.5656]
[1736400829969,6.44680981,195.0,194.94,6.44680981]
[1736400830166,9.32680981,195.0,194.94,6.44680981]
[1736400831074,9.32680981,195.0,194.99,2.5653]
[1736400831370,2.88,195.03,194.96,6.44680981]
[1736400831968,6.44680981,195.02,194.96,6.44680981]
[1736400832771,9.32680981,195.02,194.96,6.44680981]
[1736400832969,9.32680981,195.02,194.97,2.5655]
[1736400833165,6.44680981,195.0,194.95,1.4589]
[1736400833570,6.44680981,195.0,194.99,2.5653]
[1736400835666,9.32680981,195.02,195.01,2.5651]
[1736400843077,6.44680981,195.02,195.01,2.5651]
[1736400845277,63.83074648,195.15,195.05,2.5645]
[1736400845478,3.81110595,195.11,195.05,2.5645]
[1736400845683,0.93110595,195.1,195.01,6.44680981]
[1736400845879,1.6075,195.14,194.98,1.6043]
[1736400845880,2.88,195.12,195.09,2.564]
[1736400846086,6.44680981,195.1,195.09,2.564]
[1736400846480,6.44680981,195.1,195.03,6.44680981]
[1736400846674,6.44680981,195.1,195.08,2.5642]
[1736400847180,6.44680981,195.1,195.06,2.5644]
[1736400847380,6.44680981,195.08,195.06,2.5644]
[1736400848184,6.44680981,195.08,195.07,2.5643]
[1736400852888,6.44680981,195.08,195.02,4.3611]
[1736400853083,6.44680981,195.08,195.06,2.5644]
[1736400855688,6.44680981,195.08,195.04,2.5646]
[1736400855884,6.44680981,195.06,195.04,2.5646]
[1736400856590,6.44680981,195.06,194.99,2.88]
[1736400856883,6.44680981,195.04,194.99,9.32680981]
[1736400857090,6.44680981,195.06,195.04,2.5646]
[1736400859084,6.44680981,195.06,194.99,10.85580981]
[1736400860188,6.44680981,195.06,195.04,2.5647]
[1736400862587,6.44680981,195.06,195.02,2.5649]
[1736400862888,6.44680981,195.02,194.96,6.44680981]
[1736400863086,6.44680981,195.0,194.96,2.5657]
[1736400863288,9.32680981,195.0,194.94,6.44680981]
[1736400864092,9.32680981,195.0,194.99,2.5653]
[1736400864287,2.88,195.0,194.99,2.5653]
[1736400867490,9.32680981,195.0,194.99,2.5653]
[1736400868494,9.32680981,195.0,194.98,2.5655]
[1736400868698,9.32680981,195.0,194.94,6.44680981]
[1736400869794,9.32680981,195.0,194.95,2.5658]
[1736400869991,9.32680981,195.0,194.94,6.44680981]
[1736400871098,9.32680981,195.0,194.99,2.5653]
[1736400871894,9.32680981,195.0,194.92,3.0939]
[1736400871895,9.32680981,195.0,194.94,2.5659]
[1736400872096,6.44680981,194.98,194.92,3.0939]
[1736400872893,6.44680981,194.98,194.97,2.5656]
[1736400873092,2.88,195.0,194.97,2.5656]
[1736400873291,6.44680981,194.99,194.97,2.5656]
[1736400874595,2.88,194.98,194.93,6.44680981]
[1736400876094,9.75528129,195.1,194.93,6.44680981]
[1736400876299,6.44680981,195.01,194.93,6.44680981]
[1736400876499,9.32680981,195.01,194.93,6.44680981]
[1736400876998,9.32680981,195.01,194.99,2.5653]
[1736400878498,9.32680981,195.01,195.0,2.5652]
[1736400882198,9.32680981,195.01,194.93,6.44680981]
[1736400882502,6.44680981,194.99,194.93,6.44680981]
[1736400883004,6.44680981,194.99,194.98,2.5655]
[1736400887409,9.32680981,195.01,194.93,6.44680981]
[1736400887608,9.32680981,195.01,194.99,2.5653]
[1736400889110,2.88,195.01,194.99,2.5653]
[1736400889314,9.32680981,195.01,194.99,2.5653]
[1736400892615,1.5154,195.1,194.95,6.44680981]
[1736400892816,6.44680981,195.02,194.95,6.44680981]
[1736400893717,6.44680981,195.02,195.01,2.5651]
[1736400894412,2.5644,195.06,195.02,2.5648]
[1736400894613,2.5644,195.06,194.92,3.0939]
[1736400894614,6.44680981,195.04,194.97,6.44680981]
[1736400895515,6.44680981,195.05,194.99,6.44680981]
[1736400895817,6.44680981,195.07,195.01,6.44680981]
[1736400896211,6.44680981,195.07,195.02,1.5307]
[1736400896611,6.44680981,195.07,195.06,2.5644]
[1736400898913,6.44680981,195.07,195.02,1.5307]
[1736400899115,6.44680981,195.07,195.05,2.5645]
[1736400903318,9.01120981,195.07,195.02,2.5648]
[1736400903518,6.44680981,195.04,194.96,9.32680981]
[1736400903724,6.44680981,195.02,194.96,6.44680981]
[1736400904123,6.44680981,195.0,194.94,6.44680981]
[1736400905026,6.44680981,195.0,194.93,1.5716]
[1736400905526,6.44680981,194.98,194.93,1.5716]
[1736400906620,6.44680981,194.96,194.91,5.01915887]
[1736400907025,6.44680981,194.94,194.91,5.01915887]
[1736400908227,6.44680981,194.94,194.92,2.5661]
[1736400908825,6.44680981,194.94,194.93,2.5661]
[1736400909227,6.44680981,194.94,194.91,5.01915887]
[1736400909530,2.88,194.98,194.91,5.01915887]
[1736400909729,6.44680981,194.95,194.91,5.01915887]
[1736400910431,2.88,194.98,194.91,5.01915887]
[1736400910630,9.32680981,194.98,194.92,6.44680981]
[1736400911031,6.44680981,195.01,194.94,6.44680981]
[1736400912126,6.44680981,195.01,194.98,2.5654]
[1736400912731,6.44680981,194.99,194.92,6.44680981]
[1736400912925,6.44680981,194.99,194.95,2.5658]
[1736400915029,6.44680981,194.99,194.92,6.44680981]
[1736400915229,6.44680981,194.99,194.96,2.5657]
[1736400916235,6.44680981,194.99,194.92,6.44680981]
[1736400916434,6.44680981,194.97,194.95,2.5658]
[1736400918535,6.44680981,194.97,194.96,2.5657]
[1736400920233,2.88,195.02,194.98,2.5654]
[1736400920433,6.44680981,195.0,194.94,6.44680981]
[1736400922137,6.44680981,195.0,194.97,2.5655]
[1736400922535,6.44680981,195.0,194.94,6.44680981]
[1736400923035,6.44680981,195.0,194.95,2.5658]
[1736400923237,6.44680981,195.0,194.93,1.5299]
[1736400923734,6.44680981,195.0,194.97,2.5655]
[1736400925339,6.44680981,195.0,194.98,2.5654]
[1736400928347,6.44680981,195.0,194.99,2.5653]
[1736400928642,1.5898,195.07,194.94,6.44680981]
[1736400928643,2.88,195.02,194.94,6.44680981]
[1736400928943,6.44680981,195.01,194.94,6.44680981]
[1736400929538,6.44680981,195.01,194.94,7.97310981]
[1736400929738,2.5647,195.04,195.0,2.5652]
[1736400929937,5.4447,195.04,194.96,6.44680981]
[1736400930136,6.44680981,195.02,194.96,6.44680981]
[1736400930339,1.5898,195.07,194.96,6.44680981]
[1736400930638,6.44680981,195.06,194.98,6.44680981]
[1736400930942,6.44680981,195.06,195.04,2.5646]
[1736400931145,2.88,195.08,195.0,6.44680981]
[1736400931344,6.44680981,195.07,195.0,6.44680981]
[1736400931935,6.44680981,195.07,195.05,2.5644]
[1736400932140,1.5454,195.13,195.02,6.44680981]
[1736400932341,6.44680981,195.09,195.02,6.44680981]
[1736400932642,6.44680981,195.09,195.04,6.44680981]
[1736400933445,6.44680981,195.09,195.02,6.44680981]
[1736400934243,6.44680981,195.09,195.07,2.5642]
[1736400935443,63.83074648,195.15,195.1,2.5639]
[1736400935647,6.44680981,195.12,195.06,6.44680981]
[1736400935847,6.44680981,195.14,195.08,6.44680981]
[1736400936745,6.44680981,195.14,195.06,6.44680981]
[1736400938045,6.44680981,195.14,195.03,4.4313]
[1736400938249,6.44680981,195.12,195.1,2.5638]
[1736400938547,6.44680981,195.12,195.06,6.44680981]
[1736400939145,6.44680981,195.12,195.09,2.5639]
[1736400939341,6.44680981,195.12,195.06,6.44680981]
[1736400939745,6.44680981,195.14,195.11,2.5638]
[1736400942453,6.44680981,195.12,195.11,2.5638]
[1736400942949,6.44680981,195.12,195.07,2.5642]
[1736400943252,6.44680981,195.12,195.04,6.44680981]
[1736400943453,6.44680981,195.12,195.06,6.44680981]
[1736400944355,6.44680981,195.12,195.11,2.5638]
[1736400945759,6.44680981,195.12,195.1,2.5639]
[1736400951664,6.44680981,195.12,195.11,2.5638]
[1736400960776,6.44680981,195.12,195.04,6.44680981]
[1736400961775,6.44680981,195.08,195.03,1.5513]
[1736400961976,9.32680981,195.08,195.01,7.93150981]
[1736400962276,6.44680981,195.06,195.04,2.5646]
[1736400962670,6.44680981,195.06,194.97,8.05980981]
[1736400962873,6.44680981,195.04,194.97,8.05980981]
[1736400963070,2.88,195.03,194.97,8.05980981]
[1736400963476,2.88,195.03,195.02,2.5649]
[1736400964574,2.88,195.03,195.0,2.5652]
[1736400964774,6.44680981,195.02,195.0,2.5652]
[1736400965379,6.44680981,195.02,194.92,1.6071]
[1736400965380,6.44680981,195.02,194.95,6.44680981]
[1736400965571,6.44680981,195.02,194.99,2.5653]
[1736400966679,6.44680981,195.02,194.95,6.44680981]
[1736400966877,6.44680981,195.02,195.0,2.5651]
[1736400967978,6.44680981,195.02,195.01,2.5651]
[1736400970180,1.5223,195.12,195.04,2.5646]
[1736400970181,2.5642,195.08,195.04,2.5646]
[1736400970382,6.44680981,195.06,195.01,6.44680981]
[1736400970580,1.5223,195.12,195.01,9.32680981]
[1736400970581,6.44680981,195.08,195.01,9.32680981]
[1736400973180,6.44680981,195.08,195.05,2.5644]
[1736400974586,6.44680981,195.06,195.03,2.5648]
[1736400974785,6.44680981,195.06,195.01,9.32680981]
[1736400975484,6.44680981,195.06,195.01,2.88]
[1736400976488,6.44680981,195.06,195.04,2.5647]
[1736400977782,6.44680981,195.06,195.03,2.5648]
[1736400977984,6.44680981,195.04,194.97,7.97760981]
[1736400978691,6.44680981,195.04,195.01,2.565]
[1736400979083,6.44680981,195.04,194.97,7.97760981]
[1736400979289,6.44680981,195.04,195.03,2.5648]
[1736400985294,1.5223,195.12,194.99,6.44680981]
[1736400985589,6.44680981,195.07,194.99,6.44680981]
[1736400985886,6.44680981,195.07,195.04,2.5646]
[1736400986891,6.44680981,195.05,195.04,2.5646]
[1736400987190,6.44680981,195.05,195.03,2.5648]
[1736400987495,6.44680981,195.05,194.99,6.44680981]
[1736400988693,6.44680981,195.07,195.04,2.5646]
[1736400988988,6.44680981,195.07,195.01,6.44680981]
[1736400989390,6.44680981,195.09,195.01,6.44680981]
[1736400989688,8.24304694,195.13,195.03,6.44680981]
[1736400989893,14.68985675,195.13,195.05,6.44680981]
[1736400990089,6.44680981,195.13,195.05,6.44680981]
[1736400990290,6.44680981,195.13,195.07,6.44680981]
[1736400993093,6.44680981,195.13,195.1,2.5638]
[1736400995097,6.44680981,195.13,195.11,2.5638]
[1736400995597,6.44680981,195.13,195.09,2.564]
[1736400995793,6.44680981,195.11,195.09,2.564]
[1736400996399,6.44680981,195.11,195.05,2.88]
[1736400996698,6.44680981,195.09,195.05,2.88]
[1736400996898,6.44680981,195.09,195.04,1.5637]
[1736400998094,6.44680981,195.09,195.06,2.5643]
[1736400998294,6.44680981,195.09,195.04,1.5637]
[1736400998899,6.44680981,195.07,195.0,6.44680981]
[1736400999100,6.44680981,195.07,195.0,9.32680981]
[1736400999499,6.44680981,195.07,195.05,2.5645]
[1736401000602,6.44680981,195.07,194.99,1.5895]
[1736401000795,6.44680981,195.04,194.98,2.88]
[1736401000995,6.44680981,195.02,194.96,6.44680981]
[1736401001704,6.44680981,195.04,195.02,2.5649]
[1736401003399,6.44680981,195.04,194.98,2.5654]
[1736401003591,6.44680981,195.04,194.96,6.44680981]
[1736401004303,6.44680981,195.04,195.01,2.565]
[1736401007407,8.24048407,195.14,195.02,6.44680981]
[1736401007608,6.44680981,195.12,195.05,6.44680981]
[1736401008203,6.44680981,195.12,195.09,2.5639]
[1736401008608,6.44680981,195.1,195.03,6.44680981]
[1736401008809,6.44680981,195.08,195.02,1.5951]
[1736401009206,6.44680981,195.08,195.04,2.5646]
[1736401009405,6.44680981,195.06,194.97,6.44680981]
[1736401009603,6.44680981,195.01,194.94,47.03889134]
[1736401009806,6.44680981,194.99,194.94,47.03889134]
[1736401010311,6.44680981,194.99,194.97,2.5656]
[1736401010513,6.44680981,194.99,194.91,5.15380891]
[1736401010703,6.44680981,194.97,194.91,5.15380891]
[1736401010909,6.44680981,194.95,194.91,5.15380891]
[1736401011109,6.44680981,194.95,194.88,10.90580981]
[1736401011307,10.11422504,194.98,194.88,4.459]
[1736401012312,12.67972504,194.98,194.92,2.5662]
[1736401013312,10.11422504,194.98,194.93,2.5661]
[1736401017217,12.67972504,194.98,194.93,2.5661]
[1736401017418,12.67972504,194.98,194.88,1.579]
[1736401017615,12.67972504,194.98,194.94,2.566]
[1736401019222,2.88,194.99,194.96,2.5657]
[1736401020719,10.11422504,194.98,194.88,1.579]
[1736401021917,10.11422504,194.95,194.88,1.579]
[1736401022922,2.5658,194.96,194.91,2.5663]
[1736401023130,1.5156,194.99,194.89,10.11422504]
[1736401023131,2.88,194.99,194.89,10.11422504]
[1736401023318,2.88,195.0,194.89,14.52972504]
[1736401024327,10.11422504,195.01,194.89,14.52972504]
[1736401024623,12.99422504,195.01,194.89,14.52972504]
[1736401025124,12.99422504,195.01,194.97,2.5655]
[1736401025324,2.88,195.01,194.89,14.52972504]
[1736401026622,5.4452,195.01,194.96,2.5657]
[1736401026923,2.88,195.01,194.96,2.5657]
[1736401027126,2.5653,195.0,194.96,2.5657]
[1736401027321,2.88,195.01,194.96,2.5657]
[1736401027524,5.4451,195.01,194.96,2.5657]
[1736401030725,15.55932504,195.01,194.96,2.5657]
[1736401031519,2.5654,194.99,194.94,2.5659]
[1736401031719,10.11422504,194.98,194.88,1.579]
[1736401031925,10.11422504,194.98,194.88,11.69322504]
[1736401032125,2.5652,195.0,194.96,2.5656]
[1736401032424,12.99422504,195.01,194.89,1.5105]
[1736401033331,6.47060909,194.99,194.93,6.47060909]
[1736401034231,6.47060909,194.99,194.96,2.5657]
[1736401034930,2.5655,194.98,194.94,2.5659]
[1736401035330,6.47060909,194.99,194.91,6.47060909]
[1736401036130,9.03600909,194.99,194.95,2.5658]
[1736401040334,11.91600909,194.99,194.95,2.5658]
[1736401043338,11.91600909,194.99,194.96,2.5657]
[1736401044838,2.88,195.0,194.95,6.47060909]
[1736401045435,2.88,195.0,194.96,2.5657]
[1736401045639,2.88,195.0,194.95,6.47060909]
[1736401047142,2.88,195.0,194.98,2.5654]
[1736401051838,2.88,195.0,194.97,2.5656]
[1736401057245,6.47060909,194.99,194.89,1.5105]
[1736401057436,6.47060909,194.95,194.88,1.579]
[1736401057636,6.47060909,194.93,194.88,1.579]
[1736401057942,6.47060909,194.97,194.89,6.47060909]
[1736401058145,6.47060909,194.99,194.91,6.47060909]
[1736401058550,6.47060909,194.99,194.93,6.47060909]
[1736401059144,6.47060909,194.99,194.96,2.5656]
[1736401059345,2.88,195.01,194.93,6.47060909]
[1736401059544,1.5788,195.05,194.95,6.47060909]
[1736401059749,6.47060909,195.03,195.0,2.5652]
[1736401060645,6.47060909,195.03,194.99,2.5653]
[1736401062445,9.03550909,195.03,194.99,2.5653]
[1736401063044,9.03550909,195.03,194.97,6.47060909]
[1736401063248,9.03550909,195.03,194.98,2.5655]
[1736401064149,2.5649,195.02,194.98,2.5655]